bitfinex-derivatives/quotes_ETHF0:USTF0_20251003
["timestamp","ask_amount","ask_price","bid_price","bid_amount"]
[1759453994551,0.4169,4475.2,4475.1,0.9717]
[1759453995050,0.2097,4475.2,4475.1,0.9717]
[1759453995354,0.00187127,4475.3,4475.2,0.7477]
[1759453996849,1.6064238,4477.3,4477.2,0.7477]
[1759453997046,0.4389,4477.9,4477.8,0.7477]
[1759453997251,0.4389,4477.9,4477.8,0.9227]
[1759453997447,0.7229,4477.9,4477.8,0.3044]
[1759453997651,0.7229,4477.9,4477.8,0.53102132]
[1759453997855,0.7247781,4477.9,4477.8,0.22662132]
[1759453999457,0.7247781,4477.9,4477.8,0.30702132]
[1759453999860,0.7247781,4477.9,4477.8,0.22662132]
[1759454000455,0.7247781,4477.9,4477.8,0.00262132]
[1759454003549,0.7247781,4477.9,4477.8,0.22232132]
[1759454003855,0.2335781,4477.9,4477.8,0.75032132]
[1759454004054,0.0238781,4477.9,4477.8,0.75032132]
[1759454004555,0.4550781,4477.9,4477.8,0.75032132]
[1759454004756,0.4550781,4477.9,4477.8,0.97432132]
[1759454005053,0.4550781,4477.9,4477.8,0.75032132]
[1759454005359,0.7387781,4477.9,4477.8,0.53102132]
[1759454006356,0.7387781,4477.9,4477.8,0.96232132]
[1759454006357,0.4550781,4477.9,4477.8,0.96232132]
[1759454006558,0.4550781,4477.9,4477.8,0.73832132]
[1759454006757,0.2335781,4477.9,4477.8,0.96232132]
[1759454007658,0.0238781,4477.9,4477.8,0.96232132]
[1759454007859,0.2458781,4477.9,4477.8,0.96232132]
[1759454008264,0.7510781,4477.9,4477.8,0.96232132]
[1759454008662,0.7510781,4477.9,4477.8,0.73832132]
[1759454008856,0.7510781,4477.9,4477.8,0.96232132]
[1759454009660,0.7510781,4477.9,4477.8,0.73832132]
[1759454009853,5.7510781,4477.9,4477.8,0.00262132]
[1759454010047,1.22882195,4477.9,4477.8,0.53252132]
[1759454010252,0.94512195,4477.9,4477.8,0.75152132]
[1759454010448,0.4673781,4477.9,4477.8,0.97552132]
[1759454011863,0.7510781,4477.9,4477.8,0.97552132]
[1759454012156,1.22912656,4477.9,4477.8,0.97552132]
[1759454014259,0.94542656,4477.9,4477.8,0.97552132]
[1759454017661,0.72392656,4477.9,4477.8,0.97552132]
[1759454020159,1.22872656,4477.9,4477.8,0.00262132]
[1759454020958,1.22872656,4477.9,4477.8,0.31652132]
[1759454021360,1.22872656,4477.9,4477.8,0.52972132]
[1759454022359,1.22872656,4477.9,4477.8,0.31652132]
[1759454022953,0.94502656,4477.9,4477.8,0.73242132]
[1759454023153,0.94502656,4477.9,4477.8,0.52972132]
[1759454023154,1.22872656,4477.9,4477.8,0.52972132]
[1759454023354,0.94502656,4477.9,4477.8,0.52972132]
[1759454024168,1.22872656,4477.9,4477.8,0.52972132]
[1759454026262,1.22872656,4477.9,4477.3,0.224]
[1759454026470,2.37265777,4477.6,4477.5,0.4159]
[1759454026669,2.85070623,4477.6,4477.5,0.4159]
[1759454026971,2.85070623,4477.6,4477.5,0.2132]
[1759454027273,2.85070623,4477.6,4477.5,0.2158385]
[1759454027967,2.85070623,4477.6,4476.2,3.2078]
[1759454027968,0.3283,4477.4,4476.2,3.2078]
[1759454028169,0.7664,4476.8,4476.7,0.7298]
[1759454028366,0.47804846,4476.8,4476.7,3.9376]
[1759454028767,0.47804846,4477.0,4476.7,3.9376]
[1759454028973,0.47804846,4476.9,4476.8,0.7298]
[1759454029372,1.60593682,4477.2,4477.1,0.4159]
[1759454029570,2.08617515,4477.2,4477.1,0.7298]
[1759454030873,0.48023833,4477.2,4477.1,0.7298]
[1759454036774,1.02553833,4477.2,4477.1,0.7298]
[1759454037274,0.7664,4477.1,4476.7,3.20956542]
[1759454037479,0.7664,4476.8,4476.7,3.42276542]
[1759454037674,1.24663833,4476.8,4476.7,3.42276542]
[1759454037871,1.24663833,4476.8,4476.7,3.20956542]
[1759454038181,1.24663833,4476.8,4476.7,0.22576542]
[1759454038875,1.24663833,4476.8,4476.7,0.00176542]
[1759454040477,1.24663833,4476.8,4476.7,0.73156542]
[1759454041078,1.24663833,4476.8,4476.7,0.00176542]
[1759454052188,1.24663833,4476.8,4476.7,0.21656542]
[1759454052890,1.24663833,4476.8,4476.7,0.00176542]
[1759454064491,0.91833833,4476.8,4475.6,3.2078]
[1759454064689,0.735,4475.7,4475.6,3.2078]
[1759454065197,1.21538662,4475.7,4475.6,3.2078]
[1759454065704,1.21538662,4475.7,4475.6,3.21068102]
[1759454067104,1.21538662,4475.7,4475.6,3.75498102]
[1759454067303,1.21538662,4475.7,4475.6,3.97358102]
[1759454067608,1.21538662,4475.7,4475.6,3.42508102]
[1759454067796,1.21538662,4475.7,4475.6,3.21068102]
[1759454070709,1.21538662,4475.7,4475.6,0.00288102]
[1759454085410,6.21538662,4475.7,4474.4,0.3094]
[1759454085617,0.7326,4474.5,4474.4,0.7469]
[1759454086420,0.7343982,4474.5,4474.4,0.7490055]
[1759454087018,0.0017982,4474.5,4474.4,1.1509655]
[1759454087214,0.0017982,4474.5,4474.4,0.7490055]
[1759454088817,0.0017982,4474.5,4474.4,1.1509655]
[1759454089714,0.0017982,4474.5,4474.4,0.7490055]
[1759454093728,0.3067982,4474.5,4474.4,0.7490055]
[1759454094028,0.3067982,4474.5,4474.4,0.9730055]
[1759454097728,0.0017982,4474.5,4474.4,0.9730055]
[1759454098930,0.5288982,4474.5,4474.4,0.7490055]
[1759454099128,0.5288982,4474.5,4474.4,0.9730055]
[1759454099429,0.5288982,4474.5,4474.4,0.7490055]
[1759454099624,0.7343982,4474.5,4474.4,0.7490055]
[1759454099834,0.7343982,4474.5,4474.4,0.9730055]
[1759454100328,0.0017982,4474.5,4474.4,1.3749655]
[1759454100523,0.1313,4477.0,4475.2,0.2143]
[1759454100524,0.305,4475.4,4475.2,0.2143]
[1759454100830,0.305,4475.4,4475.3,0.9709]
[1759454101125,0.5271,4475.4,4475.3,0.9709]
[1759454101429,1.00711358,4475.4,4475.3,0.9709]
[1759454101631,0.48162466,4475.4,4475.3,0.9709]
[1759454102933,1.02862466,4475.4,4475.3,0.9709]
[1759454103123,1.24152466,4475.4,4475.3,0.6615]
[1759454103531,1.24152466,4475.4,4475.3,0.9779]
[1759454103923,0.7599,4474.9,4474.8,0.5366]
[1759454104230,0.4271,4474.7,4474.6,0.4442]
[1759454104418,0.7599,4474.7,4474.6,0.4442]
[1759454104623,1.24008412,4474.7,4474.6,0.7606]
[1759454105024,1.2400973,4474.7,4474.6,0.9772]
[1759454105219,1.24014812,4474.7,4474.6,0.9772]
[1759454106530,1.24014812,4474.7,4474.6,0.2202]
[1759454106823,1.24014812,4474.7,4474.6,0.4442]
[1759454107034,0.69444812,4474.7,4474.6,0.9772]
[1759454107237,1.02724812,4474.7,4474.6,0.9772]
[1759454107529,1.24014812,4474.7,4474.6,0.9772]
[1759454108033,0.3328,4474.6,4474.5,3.2078]
[1759454108237,0.123,4474.5,4474.4,0.0021055]
[1759454108531,1.36314812,4474.5,4474.4,0.0021055]
[1759454109327,4.57094812,4474.5,4474.4,0.0021055]
[1759454115537,4.57094812,4474.5,4474.4,0.7553055]
[1759454115538,0.81304812,4474.5,4474.4,0.7553055]
[1759454115836,0.48024812,4474.5,4474.4,0.7553055]
[1759454118135,0.48024812,4474.5,4474.4,5.7553055]
[1759454118336,0.33441108,4475.4,4475.3,0.7532]
[1759454118733,0.00161108,4475.4,4475.3,0.7532]
[1759454120439,0.76151108,4475.4,4475.3,0.2202]
[1759454120635,0.76151108,4475.4,4475.3,0.4442]
[1759454120840,0.76151108,4475.4,4475.3,0.9772]
[1759454121529,0.00161108,4475.4,4475.3,0.9772]
[1759454124340,0.76151108,4475.4,4475.3,0.9772]
[1759454127739,0.3049,4475.3,4475.2,3.5351]
[1759454127945,0.7433,4475.3,4475.2,3.4201]
[1759454130249,1.2236819,4475.3,4475.2,3.4201]
[1759454130750,1.2236819,4475.3,4475.2,3.7474]
[1759454132349,1.2236819,4475.3,4475.2,3.4201]
[1759454132549,1.2236819,4475.3,4475.2,0.4363]
[1759454134348,1.2236819,4475.3,4475.2,0.961]
[1759454135051,0.4803819,4475.3,4475.2,0.961]
[1759454138050,0.758,4474.8,4474.7,3.9505]
[1759454138357,0.758,4474.8,4474.7,3.8678]
[1759454138557,0.758,4474.8,4474.7,4.1745]
[1759454139647,0.00161108,4475.4,4474.7,3.8678]
[1759454139854,0.92019432,4475.3,4475.2,0.7427]
[1759454140052,0.92019626,4475.3,4475.2,0.218]
[1759454140253,1.23829626,4475.3,4475.2,0.218]
[1759454141254,1.23829626,4475.3,4474.8,0.3067]
[1759454141556,0.5368,4474.8,4474.7,4.1745]
[1759454141752,1.01709626,4474.8,4474.7,4.1745]
[1759454141954,0.5368,4474.8,4474.7,4.1745]
[1759454142354,1.01741998,4474.8,4474.7,4.1745]
[1759454142657,1.23861998,4474.8,4474.7,3.4258]
[1759454142850,0.8844,4474.5,4474.4,0.2201055]
[1759454143057,1.36501998,4474.5,4474.4,0.0021055]
[1759454143260,4.57281998,4474.5,4474.4,0.0021055]
[1759454147762,0.758,4473.6,4473.5,3.4258]
[1759454148160,0.758,4473.6,4473.5,0.218]
[1759454148655,0.758,4473.6,4473.5,0.5247]
[1759454148865,0.758,4473.6,4473.5,0.74449642]
[1759454154267,0.758,4473.7,4473.6,0.436]
[1759454154763,0.758,4473.7,4473.6,0.218]
[1759454154957,0.758,4473.7,4473.5,0.00179642]
[1759454155159,0.758,4473.7,4473.6,0.218]
[1759454155466,0.758,4473.7,4473.6,0.436]
[1759454155655,0.758,4473.7,4473.6,0.7427]
[1759454156059,0.758,4473.7,4473.6,0.218]
[1759454156461,0.758,4473.7,4473.6,0.7427]
[1759454156664,0.5368,4473.7,4473.6,0.7427]
[1759454159062,0.758,4473.7,4473.5,0.00179642]
[1759454161666,1.13333,4473.6,4473.5,0.00179642]
[1759454164164,1.13333,4473.6,4473.5,0.22029642]
[1759454164470,1.13333,4473.6,4473.5,0.53819642]
[1759454165367,1.13333,4473.6,4473.5,4.10079642]
[1759454165368,0.88253271,4473.6,4473.5,4.10079642]
[1759454165670,0.40203,4473.6,4473.5,4.10079642]
[1759454165967,0.3103,4473.9,4473.5,4.32479642]
[1759454165968,0.40202,4473.8,4473.5,4.32479642]
[1759454166173,0.3103,4473.9,4473.5,4.32479642]
[1759454166174,0.48048675,4473.7,4473.6,0.7573]
[1759454168069,0.48048675,4473.7,4473.6,6.15933]
[1759454168269,0.522,4474.4,4474.3,0.4394]
[1759454168465,1.00305499,4474.4,4474.3,0.7573]
[1759454168665,1.21235499,4474.4,4474.3,0.7573]
[1759454171475,1.00305499,4474.4,4474.3,0.7573]
[1759454171772,1.21235499,4474.4,4474.3,0.7573]
[1759454174074,1.21235499,4474.1,4474.0,0.9813]
[1759454174977,1.21235499,4474.1,4474.0,0.7573]
[1759454176081,1.21235499,4474.1,4474.0,0.2185]
[1759454180180,1.21235499,4474.1,4473.7,0.3179]
[1759454180181,0.421,4473.9,4473.8,0.4425]
[1759454180382,1.21235499,4473.9,4473.8,0.224]
[1759454180683,0.7313,4473.6,4473.5,3.43359642]
[1759454180882,0.7313,4473.6,4473.5,3.65209642]
[1759454181276,0.7313,4473.6,4473.5,3.96999642]
[1759454182180,0.7313,4473.6,4473.5,3.65209642]
[1759454182384,1.21325006,4473.6,4473.5,3.20959642]
[1759454183282,1.21325006,4473.6,4473.5,3.42809642]
[1759454186384,1.61528006,4473.6,4473.5,3.42809642]
[1759454186681,1.61528006,4473.6,4473.5,0.00179642]
[1759454186986,4.82308006,4473.6,4473.5,0.00179642]
[1759454188285,9.82308006,4473.6,4473.5,0.00179642]
[1759454188681,0.82601,4472.7,4472.6,0.532]
[1759454188878,1.62277283,4472.7,4472.6,0.532]
[1759454189081,1.62277283,4472.7,4472.6,0.7456]
[1759454189280,1.14121,4472.7,4472.6,0.7456]
[1759454189682,1.14121,4472.7,4472.6,0.74798844]
[1759454191889,0.40211,4472.8,4472.6,0.42098844]
[1759454192089,0.40211,4472.8,4472.7,0.7436]
[1759454192286,0.4021,4473.0,4472.7,0.4314]
[1759454192485,0.4021,4473.0,4472.9,3.9514]
[1759454192687,0.4021,4473.0,4472.9,4.1754]
[1759454195985,0.3041,4473.5,4472.9,4.1754]
[1759454196185,0.40207,4473.2,4473.1,0.7436]
[1759454196392,0.40207,4473.2,4473.1,0.9676]
[1759454199093,0.70617,4473.2,4473.1,0.9676]
[1759454199299,0.92287,4473.2,4473.1,0.9676]
[1759454200993,0.3041,4473.8,4473.2,0.3122]
[1759454201197,1.12996,4474.4,4474.3,0.5272]
[1759454201393,1.61084896,4474.4,4474.3,0.9676]
[1759454201595,0.88284896,4474.4,4474.3,0.9676]
[1759454201892,0.3041,4474.7,4474.6,0.4314]
[1759454202093,3.60971,4475.0,4474.8,0.4314]
[1759454202298,3.91381,4475.0,4474.9,0.9676]
[1759454202499,4.61140116,4475.0,4474.9,0.9676]
[1759454203000,4.81860116,4475.0,4474.9,0.9676]
[1759454203201,1.61080116,4475.0,4474.9,0.9676]
[1759454204793,1.40360116,4475.0,4474.9,0.9676]
[1759454207504,0.48089116,4475.0,4474.9,0.9676]
[1759454208497,0.00161108,4475.4,4475.3,0.3122]
[1759454208693,0.00161108,4475.4,4475.3,0.9676]
[1759454212001,0.3041,4476.0,4475.3,0.6554]
[1759454212201,0.3041,4476.4,4475.9,0.4314]
[1759454212505,1.20558269,4476.3,4476.2,0.7436]
[1759454212706,0.728,4476.3,4476.2,0.9676]
[1759454213002,0.72973753,4476.3,4476.2,0.9676]
[1759454213200,0.72973753,4476.3,4476.2,0.96969421]
[1759454213400,0.72973753,4476.3,4476.2,0.44109421]
[1759454214095,0.72973753,4476.3,4476.2,0.22609421]
[1759454217008,0.52253753,4476.3,4476.2,4.17749421]
[1759454217910,0.72973753,4476.3,4476.2,4.17749421]
[1759454218410,0.72973753,4476.3,4476.2,3.42489421]
[1759454218601,0.72973753,4476.3,4476.2,3.95349421]
[1759454220215,0.72973753,4476.3,4476.2,3.20989421]
[1759454220710,0.72973753,4476.3,4476.2,3.95349421]
[1759454222806,0.72973753,4476.3,4476.2,4.17749421]
[1759454225609,6.20713733,4476.3,4476.2,0.00209421]
[1759454226512,6.20713733,4476.3,4475.6,3.2078]
[1759454226710,0.7529,4475.7,4475.6,3.2078]
[1759454227109,0.3114,4475.7,4475.6,3.9349]
[1759454227512,0.5298,4475.7,4475.6,3.9373064]
[1759454228210,0.1328,4476.0,4475.6,3.9373064]
[1759454228406,0.47818203,4475.9,4475.8,0.7271]
[1759454228604,0.3114,4476.2,4475.9,0.3049]
[1759454228806,1.00793777,4476.1,4476.0,0.7271]
[1759454229613,1.23103777,4476.1,4476.0,0.7271]
[1759454230313,1.23103777,4476.1,4476.0,0.4222]
[1759454230621,0.7529,4475.8,4475.6,3.2102064]
[1759454230913,0.7529,4475.8,4475.7,0.4392]
[1759454231213,1.23185166,4475.8,4475.7,0.4392]
[1759454232115,1.23185166,4475.8,4475.7,0.9511]
[1759454232710,1.00875166,4475.8,4475.7,0.9511]
[1759454232908,0.47895166,4475.8,4475.7,0.9511]
[1759454237517,1.23185166,4475.8,4475.7,0.9511]
[1759454237812,1.23185166,4475.8,4475.7,0.7271]
[1759454238021,1.23185166,4475.8,4475.7,0.9511]
[1759454245533,0.7155,4475.7,4475.6,0.0024064]
[1759454245729,1.19445166,4475.7,4475.6,0.0024064]
[1759454246422,6.19445166,4475.7,4475.6,0.0024064]
[1759454247624,1.19445166,4475.7,4475.6,0.0024064]
[1759454247831,1.19445166,4475.7,4475.6,0.2057064]
[1759454248630,1.19445166,4475.7,4475.6,0.0024064]
[1759454248832,1.19445166,4475.7,4475.6,0.2057064]
[1759454249528,1.19445166,4475.7,4475.6,0.7598064]
[1759454250127,1.19445166,4475.7,4475.6,0.0024064]
[1759454252926,6.19445166,4475.7,4475.6,0.0024064]
[1759454261937,6.19445166,4475.7,4471.3,11.63489771]
[1759454261938,0.7498,4474.2,4474.1,0.723]
[1759454262132,1.22875166,4474.2,4474.1,0.723]
[1759454263038,1.22875166,4474.2,4474.1,0.40944302]
[1759454263236,1.22875166,4474.2,4474.1,0.20514302]
[1759454263438,1.22875166,4474.2,4474.1,0.00234302]
[1759454263640,0.7498,4474.2,4474.1,0.20514302]
[1759454264238,0.7498,4474.2,4474.1,0.00234302]
[1759454264435,0.7498,4474.2,4474.1,0.20514302]
[1759454264734,0.7498,4474.2,4474.1,0.00234302]
[1759454264947,0.1309,4475.0,4474.1,0.00234302]
[1759454264948,3.2078,4475.5,4474.9,0.3159]
[1759454265236,0.3149,4475.9,4475.4,0.3159]
[1759454265435,0.5321,4475.9,4475.8,0.723]
[1759454265632,1.01145204,4475.9,4475.8,0.723]
[1759454267537,1.22915204,4475.9,4475.8,0.723]
[1759454267739,1.22915204,4475.9,4475.8,0.4071]
[1759454267946,1.22915204,4475.9,4475.3,3.2078]
[1759454268155,1.22915204,4475.8,4475.7,0.2028]
[1759454270047,0.47935204,4475.8,4475.7,0.723]
[1759454270239,0.7498,4475.8,4475.7,0.723]
[1759454270444,1.22915204,4475.8,4475.7,0.723]
[1759454274646,1.22915204,4475.8,4475.7,0.4071]
[1759454275756,0.8807,4475.5,4475.0,0.3159]
[1759454275952,0.7498,4475.1,4475.0,0.947]
[1759454279666,0.5321,4475.1,4475.0,0.947]
[1759454282258,0.7498,4475.1,4475.0,0.3159]
[1759454282460,0.758,4474.4,4474.1,0.00234302]
[1759454282664,0.5633,4473.5,4473.4,0.441]
[1759454282867,0.4384,4473.2,4473.1,0.217]
[1759454283064,0.92343662,4473.2,4472.8,3.5376]
[1759454283365,0.4384,4473.2,4472.8,3.2078]
[1759454283571,0.4384,4472.9,4472.8,3.42680236]
[1759454283871,1.2452838,4472.9,4472.8,0.00200236]
[1759454284664,1.6473838,4472.9,4472.8,0.00200236]
[1759454284965,1.6473838,4472.9,4472.8,0.21900236]
[1759454285165,1.16269521,4472.9,4472.8,0.21900236]
[1759454285868,1.16269521,4472.9,4472.8,3.97080236]
[1759454286064,0.54449521,4472.9,4472.8,3.97080236]
[1759454287271,0.76059521,4472.9,4472.8,3.97080236]
[1759454287476,0.00259521,4472.9,4472.8,9.37291236]
[1759454287671,0.00259521,4472.9,4472.8,9.19480236]
[1759454287867,0.00259521,4472.9,4472.8,8.97080236]
[1759454288072,0.00259521,4472.9,4472.8,4.19480236]
[1759454288866,0.00259521,4472.9,4472.8,3.97080236]
[1759454289167,0.44099521,4472.9,4472.8,3.64100236]
[1759454289469,0.44099521,4472.9,4472.8,0.00200236]
[1759454289470,1.24353669,4472.9,4472.8,0.00200236]
[1759454291269,0.4384,4472.2,4472.1,0.5468]
[1759454291470,0.758,4472.2,4472.1,0.6538]
[1759454291670,1.16016,4472.2,4472.1,0.6538]
[1759454291875,1.16016,4472.2,4472.1,0.868]
[1759454292479,1.16016,4472.2,4472.1,0.86989837]
[1759454293074,0.758,4472.2,4472.1,0.86989837]
[1759454293273,0.2223,4472.2,4472.1,0.86989837]
[1759454293469,0.00259521,4472.9,4472.8,0.2142]
[1759454293776,1.16269521,4472.9,4472.8,0.761]
[1759454296575,0.40212,4472.6,4472.5,0.224]
[1759454296877,1.16014,4472.4,4472.3,0.5468]
[1759454297073,1.16014,4472.4,4472.3,0.217]
[1759454297276,1.16014,4472.4,4472.3,0.441]
[1759454297781,1.16014,4472.4,4472.3,0.217]
[1759454297982,1.16014,4472.4,4472.1,0.00189837]
[1759454297983,0.84056,4472.2,4472.1,0.21889837]
[1759454298178,1.16016,4472.2,4472.1,0.44289837]
[1759454298380,1.16016,4472.2,4472.1,0.65709837]
[1759454298679,1.16016,4472.2,4472.1,0.98689837]
[1759454300772,1.16016,4472.2,4472.1,0.76289837]
[1759454300976,1.16016,4472.2,4472.1,0.98689837]
[1759454301183,0.40216,4472.2,4472.1,0.98689837]
[1759454301885,0.40216,4472.2,4472.1,0.76289837]
[1759454302187,0.40216,4472.2,4472.1,0.98689837]
[1759454302485,0.62446,4472.2,4472.1,0.98689837]
[1759454302785,0.94406,4472.2,4472.1,0.98689837]
[1759454303378,0.40216,4472.2,4472.1,0.98689837]
[1759454305286,0.61486,4472.2,4472.1,0.98689837]
[1759454305583,0.93266,4472.2,4472.1,0.98689837]
[1759454307486,0.40216,4472.2,4472.1,0.98689837]
[1759454309990,1.15346,4472.2,4472.1,0.43309837]
[1759454310193,1.15346,4472.2,4472.1,0.65709837]
[1759454312290,1.64016339,4472.2,4472.1,0.65709837]
[1759454312996,1.64016339,4472.2,4472.1,0.99139837]
[1759454313379,1.64016339,4472.2,4472.1,0.65709837]
[1759454314086,1.64016339,4472.2,4472.1,0.99139837]
[1759454315489,1.64016339,4472.2,4472.1,0.44289837]
[1759454315791,1.64016339,4472.2,4472.1,0.43229837]
[1759454317391,1.64016339,4472.2,4472.1,0.22589837]
[1759454318496,1.64016339,4472.2,4472.1,0.00189837]
[1759454319393,6.64016339,4472.2,4472.1,0.00189837]
[1759454321092,0.82349,4470.8,4470.7,3.9615]
[1759454321293,1.15899,4470.8,4470.7,3.9615]
[1759454321590,1.15899,4470.8,4470.7,4.1855]
[1759454322191,1.15899,4470.8,4470.7,4.18720914]
[1759454322693,1.64535821,4470.8,4470.7,3.20950914]
[1759454322890,1.64535821,4470.8,4470.7,3.43350914]
[1759454323092,1.64535821,4470.8,4470.7,0.22570914]
[1759454323392,1.64535821,4470.8,4470.7,0.00170914]
[1759454323592,0.82357,4469.9,4469.8,0.5407]
[1759454323791,1.15907,4469.9,4469.8,0.7647]
[1759454323985,1.15907,4469.9,4469.8,0.5407]
[1759454324188,0.3355,4469.8,4469.6,3.2078]
[1759454324396,1.24207984,4469.7,4469.6,3.2078]
[1759454324597,1.24441191,4469.7,4469.6,3.43438137]
[1759454324987,1.24441191,4469.7,4469.6,3.21038137]
[1759454325597,1.24441191,4469.7,4469.6,0.00258137]
[1759454326195,0.122,4469.0,4468.6,3.2078]
[1759454326400,0.5458,4468.8,4468.7,0.224]
[1759454326589,1.15917,4468.7,4468.6,3.2078]
[1759454326794,1.15917,4468.7,4468.6,0.224]
[1759454327301,1.15917,4468.7,4468.6,0.00239241]
[1759454327905,1.15917,4468.7,4468.6,0.20879241]
[1759454329608,1.15917,4468.7,4468.6,0.75609241]
[1759454330499,0.40246,4469.0,4468.6,0.75609241]
[1759454330696,0.3355,4468.9,4468.7,0.3343]
[1759454330896,0.3355,4468.9,4468.6,0.42179241]
[1759454330897,0.5464,4468.9,4468.8,0.9777]
[1759454331607,0.7567,4468.7,4468.6,0.00239241]
[1759454331806,0.7567,4468.7,4468.6,0.76709241]
[1759454333612,0.7567,4468.7,4468.6,0.98009241]
[1759454335808,0.40245,4469.0,4468.7,0.3343]
[1759454336008,1.15915,4469.0,4468.9,0.7537]
[1759454336205,0.82367,4468.7,4468.6,0.00239241]
[1759454336404,1.15917,4468.7,4468.6,0.00239241]
[1759454336715,1.15917,4468.7,4468.6,0.22639241]
[1759454337011,1.15917,4468.7,4468.6,0.00239241]
[1759454340416,6.15917,4468.7,4468.6,0.00239241]
[1759454341613,0.75304,4468.0,4467.9,0.02238213]
[1759454341820,1.29494,4468.0,4467.9,0.02238213]
[1759454342717,1.29494,4468.0,4467.9,0.024408]
[1759454342918,1.29494,4468.0,4467.9,0.226808]
[1759454343221,1.29494,4468.0,4467.9,0.024408]
[1759454344823,1.29494,4468.0,4467.9,0.226808]
[1759454344824,0.8924,4468.0,4467.9,0.226808]
[1759454345020,0.8924,4468.0,4467.9,0.763508]
[1759454345720,0.8924,4468.0,4467.9,0.443908]
[1759454348729,0.8924,4468.0,4467.9,0.763508]
[1759454350027,0.8924,4468.0,4467.9,0.024408]
[1759454350229,1.37600528,4468.0,4467.9,0.024408]
[1759454351526,1.77854528,4468.0,4467.9,0.024408]
[1759454352730,1.77854528,4468.0,4467.9,0.763508]
[1759454353529,1.77854528,4468.0,4467.9,0.443908]
[1759454353925,1.77854528,4468.0,4467.9,0.024408]
[1759454357635,1.77854528,4468.0,4467.9,0.226808]
[1759454357833,1.77854528,4468.0,4467.9,0.546408]
[1759454359535,1.77854528,4468.0,4467.9,0.763508]
[1759454359838,0.70580528,4468.0,4467.9,0.763508]
[1759454360545,0.48360528,4468.0,4467.9,6.166058]
[1759454361045,0.40249,4468.6,4468.5,0.7391]
[1759454361239,1.16659,4468.6,4468.5,0.2024]
[1759454361437,0.4537,4468.5,4468.4,3.2078]
[1759454361742,0.8924,4468.0,4467.9,0.226808]
[1759454361931,1.37752718,4468.0,4467.9,0.988508]
[1759454362337,1.37752718,4468.0,4467.9,0.249408]
[1759454362538,1.37752718,4468.0,4467.9,0.248408]
[1759454362945,1.37752718,4468.0,4467.9,0.024408]
[1759454363345,1.37752718,4468.0,4467.9,0.249408]
[1759454364553,1.37752718,4468.0,4467.9,0.024408]
[1759454365137,1.37752718,4468.0,4467.9,0.238808]
[1759454365343,1.24922718,4468.0,4467.9,0.782008]
[1759454365539,0.69272718,4468.0,4467.9,1.007008]
[1759454366844,1.23352718,4468.0,4467.9,1.007008]
[1759454367043,1.36142718,4468.0,4467.9,1.007008]
[1759454367437,1.23352718,4468.0,4467.9,1.007008]
[1759454367746,0.48512718,4468.0,4467.9,1.007008]
[1759454368145,0.48512718,4468.0,4467.9,6.007008]
[1759454368541,0.5259,4468.5,4468.4,0.7576]
[1759454368745,1.01137803,4468.5,4468.4,4.1904]
[1759454369440,0.48547803,4468.5,4468.4,4.1904]
[1759454369646,0.48547803,4468.5,4468.4,9.1904]
[1759454370845,3.6379,4469.4,4469.3,0.4366]
[1759454371148,0.7484,4469.4,4469.3,0.9826]
[1759454372744,0.00233207,4469.7,4469.3,0.6616]
[1759454372949,0.00233207,4469.7,4469.6,3.9536]
[1759454372950,0.54033207,4469.7,4469.6,3.9536]
[1759454373145,0.00233207,4469.7,4469.6,4.1786]
[1759454374147,0.00233207,4469.7,4469.6,4.19387031]
[1759454375438,0.54033207,4469.7,4469.6,4.19387031]
[1759454375843,0.22223207,4469.7,4469.6,4.19387031]
[1759454376042,0.00233207,4469.7,4469.6,4.19387031]
[1759454378045,0.3181,4470.9,4469.8,0.3231]
[1759454378346,0.3181,4470.9,4470.8,0.7458]
[1759454378347,1.14648,4470.9,4470.8,0.7458]
[1759454378543,1.14648,4470.9,4470.8,0.9708]
[1759454378738,0.7442,4470.9,4470.8,0.9708]
[1759454378951,0.7442,4470.9,4470.8,0.98607031]
[1759454379253,0.0017644,4470.9,4470.8,0.98607031]
[1759454380842,0.0017644,4470.9,4470.8,4.19387031]
[1759454381041,0.94021,4471.7,4471.6,0.4227]
[1759454381246,0.94021,4471.7,4471.6,4.1786]
[1759454381446,1.14641,4471.7,4471.6,4.1786]
[1759454382152,1.14855892,4471.7,4471.6,4.195467]
[1759454382352,0.74634892,4471.7,4471.6,4.195467]
[1759454384755,0.00214892,4471.7,4471.6,3.970467]
[1759454385049,0.00214892,4471.7,4471.6,4.194467]
[1759454386449,0.54014892,4471.7,4471.6,4.194467]
[1759454387049,0.00214892,4471.7,4471.6,4.194467]
[1759454388449,0.74634892,4471.7,4471.6,3.970467]
[1759454388756,0.74634892,4471.7,4471.6,4.195467]
[1759454389149,0.74634892,4471.7,4471.6,3.647367]
[1759454389350,0.74634892,4471.7,4471.6,3.872367]
[1759454389555,0.74634892,4471.7,4471.6,3.647367]
[1759454389753,0.74634892,4471.7,4471.6,4.195467]
[1759454390060,0.54014892,4471.7,4471.6,4.195467]
[1759454391756,0.54014892,4471.7,4471.6,3.970467]
[1759454392057,0.54014892,4471.7,4471.6,4.195467]
[1759454392254,0.00214892,4471.7,4471.6,4.195467]
[1759454395153,0.22204892,4471.7,4471.6,3.970467]
[1759454395459,0.00214892,4471.7,4471.6,4.195467]
[1759454398063,0.00214892,4471.7,4471.6,3.970467]
[1759454398267,0.54014892,4471.7,4471.6,4.194467]
[1759454398465,1.01742469,4471.7,4471.6,4.194467]
[1759454398662,0.69932469,4471.7,4471.6,4.194467]
[1759454399065,0.47942469,4471.7,4471.6,4.194467]
[1759454399762,1.01742469,4471.7,4471.6,3.970467]
[1759454400066,1.01742469,4471.7,4471.6,4.194467]
[1759454400261,0.47942469,4471.7,4471.6,4.194467]
[1759454401866,0.47942469,4471.7,4471.6,4.596677]
[1759454403365,0.47942469,4471.7,4471.6,4.194467]
[1759454403366,0.88162469,4471.7,4471.6,4.194467]
[1759454403867,0.40434892,4471.7,4471.6,4.194467]
[1759454404061,0.71024892,4471.7,4471.6,4.194467]
[1759454404461,0.00214892,4471.7,4471.6,4.596677]
[1759454404960,0.40434892,4471.7,4471.6,4.194467]
[1759454405164,0.92694892,4471.7,4471.6,4.194467]
[1759454405572,0.92694892,4471.7,4471.6,3.970467]